Cogmind - Beta 9.4 @@@ ROGUE MODE // 2020.01.18 @ 20:52:15 // Winter2019/RPGLIKE Player: Cookie Result: Destroyed by S-43 Plague with Heavy Machine Gun Performance ------------- Evolutions (7) 3500 Regions Visited (19) 3800 Robots Destroyed (56) 280 Value Destroyed (2975) 2975 Prototype IDs (5) 100 Alien Tech Used (0) 0 Bonus (2394) 2394 TOTAL SCORE: 13049 Bonus ------- Follower Combat Kills 808 Entered Garrisons 600 Used RIF Installer 1000 Friendly Fire -14 Cogmind --------- Core Integrity 0/1500 Matter 177/300 Energy 290/370 System Corruption 9% Temperature Cool (0) Movement Hovering (53) Location -3/Research Parts ------- > --- POWER (4) -------- Light Nuclear Core Micro Fission Core Micro Fission Core Micro Fission Core > --- PROPULSION (4) --- Antigrav System Gyrokinetic Inverter Gyrokinetic Inverter Improved Antigrav System > --- UTILITY (7) ------ Advanced Signal Interpreter Advanced ECM Suite System Shield Relay Coupler [NC] (17) Relay Coupler [Grunt] (13) > --- WEAPON (5) ------- Quantum Rifle Compact HERF Cannon Linear Accelerator Improved Remote Datajack Kinetic Spear > --- INVENTORY (1) ---- Advanced Weight Redist. System Peak State ------------ > --- POWER ------------ Light Nuclear Core Micro Fission Core Micro Fission Core Micro Fission Core > --- PROPULSION ------- Antigrav System Gyrokinetic Inverter Gyrokinetic Inverter Improved Antigrav System > --- UTILITY ---------- Advanced Signal Interpreter Advanced ECM Suite Advanced Shield Generator System Shield Relay Coupler [NC] Relay Coupler [Grunt] > --- WEAPON ----------- Quantum Rifle Compact HERF Cannon Linear Accelerator Improved Remote Datajack Kinetic Spear > --- INVENTORY -------- Advanced Weight Redist. System [Rating: 104] Favorites ----------- Power Light Ion Engine Engine Light Ion Engine Power Core Micro Fission Core Propulsion Improved Hover Unit Wheel Compact Wheel Hover Unit Improved Hover Unit Utility System Shield Device Long-range Sensor Array Processor Improved Signal Interpreter Hackware System Shield Weapon Kinetic Spear Energy Gun Arc Projector Energy Cannon Disruptor Cannon Ballistic Gun Light Assault Rifle Ballistic Cannon Enhanced Gauss Cannon Special Weapon Improved Remote Datajack Slashing Weapon Chainsword Piercing Weapon Kinetic Spear Special Melee Weapon Dirty Datajack Build | -11 -10 -9 -8 -7 -7 -7 -7 -7 -6 -6 -6 -5 -5 -5 -5 -5 -4 -4 -3 ------- Run | Scr Mat Mat Mat Fac Gar Fac Low Low Fac Low Low Fac Gar Fac Gar Fac Fac Ext Res Slots Evolved 16 | 5 . 1 2 1 . . 1 . 1 . . 1 . 1 . . 1 2 . Power 3 | 1 . . . 1 . . . . . . . . . . . . . 1 . Propulsion 3 | 2 . . . . . . . . . . . . . 1 . . . . . Utility 6 | 1 . 1 2 . . . 1 . . . . 1 . . . . . . . Weapon 4 | 1 . . . . . . . . 1 . . . . . . . 1 1 . Parts Attached 107 | 6 3 13 8 1 3 6 6 . 9 . 1 9 2 17 1 7 1 5 9 Power 17 | 2 . . . . 1 2 1 . 1 . 1 1 . 4 . . . 4 . Engine 7 | 2 . . . . . 1 . . 1 . 1 . . 2 . . . . . Core 10 | . . . . . 1 1 1 . . . . 1 . 2 . . . 4 . Reactor . | . . . . . . . . . . . . . . . . . . . . Propulsion 31 | 2 1 7 . . . 2 1 . 4 . . 4 . 4 . 1 . . 5 Treads . | . . . . . . . . . . . . . . . . . . . . Leg . | . . . . . . . . . . . . . . . . . . . . Wheel 3 | 2 1 . . . . . . . . . . . . . . . . . . Hover 28 | . . 7 . . . 2 1 . 4 . . 4 . 4 . 1 . . 5 Flight . | . . . . . . . . . . . . . . . . . . . . Utility 30 | . 2 2 3 . 2 1 1 . 2 . . 3 . 5 1 6 1 . 1 Device 19 | . 1 1 3 . . . 1 . 2 . . 1 . 3 . 5 1 . 1 Storage . | . . . . . . . . . . . . . . . . . . . . Processor 5 | . 1 1 . . . . . . . . . 2 . 1 . . . . . Hackware 6 | . . . . . 2 1 . . . . . . . 1 1 1 . . . Protection . | . . . . . . . . . . . . . . . . . . . . Artifact . | . . . . . . . . . . . . . . . . . . . . Weapon 29 | 2 . 4 5 1 . 1 3 . 2 . . 1 2 4 . . . 1 3 Energy Gun 8 | 1 . 1 . . . 1 1 . 1 . . . 1 . . . . 1 1 Energy Cannon 6 | . . 3 1 . . . . . . . . . . 1 . . . . 1 Ballistic Gun 1 | 1 . . . . . . . . . . . . . . . . . . . Ballistic Cannon 4 | . . . 1 1 . . . . . . . . . 1 . . . . 1 Launcher . | . . . . . . . . . . . . . . . . . . . . Special Weapon 2 | . . . . . . . . . . . . . . 2 . . . . . Impact Weapon . | . . . . . . . . . . . . . . . . . . . . Slashing Weapon 5 | . . . 3 . . . 1 . 1 . . . . . . . . . . Piercing Weapon 1 | . . . . . . . . . . . . 1 . . . . . . . Special Melee Weapon 2 | . . . . . . . 1 . . . . . 1 . . . . . . Unidentified Prototypes 5 | . . 1 . . . 1 1 . . . . 1 . 1 . . . . . Parts Lost 3 | . . . . . . . . . . . . . 2 . . . . 1 . Power . | . . . . . . . . . . . . . . . . . . . . Propulsion . | . . . . . . . . . . . . . . . . . . . . Utility . | . . . . . . . . . . . . . . . . . . . . Weapon 3 | . . . . . . . . . . . . . 2 . . . . 1 . Highest Loss Streak 1 | . . . . . . . . . . . . . 1 . . . . 1 . Average Slot Usage (%) 89 | . 89 99 93 92 95 99 91 85 82 70 66 78 85 89 94 98 94 95 91 Engine 9 | . 22 20 17 15 15 15 12 7 6 6 11 12 12 4 . . . . . Core 8 | . . . . . 3 7 8 14 13 8 1 2 6 13 17 17 16 17 20 Wheel 2 | . 24 2 . . . . . . . . . . . . . . . . . Hover 17 | . . 26 26 23 23 23 21 21 16 8 6 14 18 17 17 21 22 20 19 Device 14 | . 10 10 16 23 19 15 14 14 13 13 13 14 18 15 23 21 16 15 9 Processor 9 | . 10 19 17 15 15 15 10 7 6 6 6 7 6 7 5 5 5 5 5 Hackware 7 | . . . . . 2 7 7 7 6 6 6 6 6 11 11 12 16 15 15 Energy Gun 6 | . 11 6 . . . 1 6 7 12 13 13 12 5 . . . . 3 5 Energy Cannon 3 | . . 13 8 . . . . . . . . . . 1 5 5 5 5 2 Special Weapon 1 | . . . . . . . . . . . . . . 4 5 5 5 5 5 Slashing Weapon 2 | . . . 6 7 7 7 6 7 6 6 6 3 . . . . . . . Piercing Weapon 2 | . . . . . . . . . . . . 2 6 5 5 5 5 5 5 Naked Turns . | . . . . . . . . . . . . . . . . . . . . Heaviest Build 67 | 9 10 15 16 18 23 23 31 31 42 42 37 42 42 55 48 48 48 67 59 Greatest Support 80 | 26 47 52 43 34 34 34 35 35 49 49 38 55 51 72 59 75 75 75 80 Greatest Overweight (x) 2 | . . 1 . . . . . . 2 . . 1 . 1 . . . . 1 Average Overweight (x) . | . . . . . . . . . . . . . . . . . . . . Largest Inventory Capacity 1 | . . . . 1 1 1 1 1 1 1 1 1 1 1 1 1 1 1 1 Average Capacity . | . . . . . 1 1 1 1 1 1 1 1 1 1 1 1 1 1 1 Most Carried 1 | . . . . 1 1 1 1 1 1 1 1 1 1 1 1 1 1 1 1 Average Carried . | . . . . . . . 1 1 . . 1 1 . . . . 1 1 1 Final Capacity 1 | . . . . 1 1 1 1 1 1 1 1 1 1 1 1 1 1 1 1 Final Carried 1 | . . . . . 1 1 1 1 1 1 1 1 1 . . 1 1 1 1 Class Distribution -------------------- 57% | Hacker-Mutant 28% | Mutant 6% | Generator-Mutant Dominant Class ---------------- Mutant | -10/Materials Mutant | -9/Materials Mutant | -8/Materials Mutant | -7/Factory Mutant | -7/Garrison Mutant | -7/Factory Hacker-Mutant | -7/Lower Caves Hacker-Mutant | -7/Lower Caves Hacker-Mutant | -6/Factory Hacker-Mutant | -6/Lower Caves Hacker-Mutant | -6/Lower Caves Hacker-Mutant | -5/Factory Hacker-Mutant | -5/Garrison Hacker-Mutant | -5/Factory Generator-Mutant | -5/Garrison Generator-Mutant | -5/Factory Hacker-Mutant | -4/Factory Hacker-Mutant | -4/Extension Hacker-Mutant | -3/Research Resources | -11 -10 -9 -8 -7 -7 -7 -7 -7 -6 -6 -6 -5 -5 -5 -5 -5 -4 -4 -3 ----------- Run | Scr Mat Mat Mat Fac Gar Fac Low Low Fac Low Low Fac Gar Fac Gar Fac Fac Ext Res Matter Collected 3694 | 260 45 117 . . 175 76 160 . 70 410 67 179 294 1321 45 88 . 373 14 Remotely . | . . . . . . . . . . . . . . . . . . . . Salvage Created 2606 | . 438 344 . . 225 12 189 . 70 105 . 77 294 276 170 119 . 269 18 Parts 137 | . 16 19 . . 13 2 6 . 9 2 3 11 7 25 7 2 . 9 6 Haulers Intercepted 2 | . 1 1 . . . . . . . . . . . . . . . . . Recyclers Shooed 3 | . 2 . . . . . . . . . . 1 . . . . . . . Parts Field Recycled . | . . . . . . . . . . . . . . . . . . . . Retrieved Matter . | . . . . . . . . . . . . . . . . . . . . Parts Self-Destructed 15 | . . . . . . . 11 . . 2 2 . . . . . . . . Prevented 11 | . . . . . . . 5 . . 2 4 . . . . . . . . Kills | -11 -10 -9 -8 -7 -7 -7 -7 -7 -6 -6 -6 -5 -5 -5 -5 -5 -4 -4 -3 ------- Run | Scr Mat Mat Mat Fac Gar Fac Low Low Fac Low Low Fac Gar Fac Gar Fac Fac Ext Res Combat Hostiles Destroyed 38 | . 3 5 . . 5 . 2 . 1 1 1 1 5 4 3 2 . 3 2 Melee 20 | . . . . . . . . . 1 . 1 1 5 3 3 1 . 3 2 Guns 8 | . 3 2 . . . . 2 . . 1 . . . . . . . . . Cannons 10 | . . 3 . . 5 . . . . . . . . 1 . 1 . . . Classes Destroyed 12 | . 5 2 . . 1 . 1 . 1 . . 2 . . . . . . . Worker 2 | . 1 . . . . . . . . . . . . . . . . . 1 Builder 2 | . . . . . . . . . . . . 1 . 1 . . . . . Hauler 2 | . 1 1 . . . . . . . . . . . . . . . . . Recycler 2 | . 2 . . . . . . . . . . . . . . . . . . Operator 3 | . . 1 . . . 1 . . . . . . . . . 1 . . . Watcher 7 | . 2 . . . . . . . . . . 2 . 2 . . . 1 . Swarmer 6 | . . . . . 5 . . . . . . . . . . . . . 1 Grunt 16 | . 3 2 . . . . 1 . . . . . 4 1 3 2 . . . Brawler 1 | . . . . . . . 1 . . . . . . . . . . . . Sentry 10 | . . 3 . . . . . . . 1 . . 1 1 . . . 3 1 Hunter 1 | . . . . . . . . . . . . 1 . . . . . . . Programmer 4 | . . . . . . . . . 1 . 1 . . 2 . . . . . Best Kill Streak 5 | . 5 3 . . 4 1 1 . 1 1 1 2 2 2 3 2 . 2 1 Combat Bots Only 4 | . 1 3 . . 4 . 1 . 1 1 1 1 2 2 3 2 . 2 1 Max Kills in Single Turn 3 | . 3 1 . . 1 1 1 . 1 1 1 1 1 1 1 1 . 1 1 Gunslinging . | . . . . . . . . . . . . . . . . . . . . Exploded . | . . . . . . . . . . . . . . . . . . . . Melee 1 | . . . . . . . . . 1 . 1 1 1 1 1 1 . 1 1 Uniques/NPCs Destroyed . | . . . . . . . . . . . . . . . . . . . . Combat | -11 -10 -9 -8 -7 -7 -7 -7 -7 -6 -6 -6 -5 -5 -5 -5 -5 -4 -4 -3 -------- Run | Scr Mat Mat Mat Fac Gar Fac Low Low Fac Low Low Fac Gar Fac Gar Fac Fac Ext Res Damage Taken 6193 | . 336 79 . . 568 13 100 31 260 100 72 277 1270 243 635 274 . 746 1189 Core 5028 | . 272 66 . . 453 9 78 24 210 77 63 218 1047 199 524 216 . 596 976 Absorbed by Shields 1062 | . . . . . 79 . . . . . . . 122 53 231 91 . 273 213 Redirected to Core 3991 | . 213 50 . . 378 9 78 24 165 77 34 204 721 159 394 216 . 518 751 Core Remaining (%) 67 | 100 58 68 72 . . . . 83 . . 87 . . . . 27 . 45 . Volleys Fired 194 | . 15 12 1 . 11 2 19 . 9 3 . 13 1 16 8 24 6 49 5 Largest 3 | . 2 2 1 . 1 1 1 . 2 2 . 2 2 1 1 1 1 2 3 Hottest 254 | . 60 124 68 . 48 48 55 . 110 110 . 110 110 81 81 81 81 162 254 Shots Fired 258 | . 30 24 1 . 11 2 19 . 18 6 . 26 2 16 8 24 6 54 11 Gun 121 | . 30 12 . . . . 19 . 18 6 . 26 2 . . . . 5 3 Cannon 75 | . . 12 1 . 11 2 . . . . . . . 11 1 20 4 7 6 Launcher . | . . . . . . . . . . . . . . . . . . . . Special 62 | . . . . . . . . . . . . . . 5 7 4 2 42 2 Kinetic 36 | . 15 . . . 11 2 . . . . . . . 5 . . . . 3 Thermal 26 | . . 17 1 . . . . . . . . . . . . . . 5 3 Explosive . | . . . . . . . . . . . . . . . . . . . . Electromagnetic 134 | . 15 7 . . . . 19 . 18 6 . 26 2 6 1 20 4 7 3 Robot Hit Streak 21 | . 5 13 14 . 2 2 8 . 10 2 . 4 4 8 6 10 8 21 5 Robot Miss Streak 5 | . 1 1 . . 2 . 3 . 1 2 . 3 . 5 1 2 1 2 1 Penetration Max . | . . . . . . . . . . . . . . . . . . . . Secondary Targets . | . . . . . . . . . . . . . . . . . . . . Shots Hit Robots 259 | . 17 17 1 . 14 2 24 . 16 5 2 14 19 16 16 21 4 52 19 Core Hits 102 | . 15 10 . . 8 1 8 . 3 1 1 7 10 9 5 8 . 8 8 Critical Hits 8 | . . 1 . . 2 . . . . 1 1 . 2 1 . . . . . Critical Kills 4 | . . 1 . . 2 . . . . . . . . 1 . . . . . Critical Parts Destroyed 4 | . . . . . . . . . . 1 1 . 2 . . . . . . Melee Attacks 118 | . . . . . 11 . 9 . 4 3 3 2 28 7 12 4 . 20 15 Impact . | . . . . . . . . . . . . . . . . . . . . Slashing 21 | . . . . . 11 . . . 4 3 3 . . . . . . . . Piercing 87 | . . . . . . . . . . . . 2 27 7 12 4 . 20 15 Sneak Attacks 9 | . . . . . . . 8 . . . . . . . . . . . 1 Combat Hostiles 6 | . . . . . . . 6 . . . . . . . . . . . . Follow-up Attacks . | . . . . . . . . . . . . . . . . . . . . Damage Inflicted 6174 | . 850 282 20 . 888 54 190 . 111 176 65 419 720 485 353 398 45 436 682 Guns 1023 | . 240 120 . . . . 190 . 43 63 . 224 26 . . . . 47 70 Cannons 1115 | . . 162 20 . 187 54 . . . . . . . 178 16 281 45 56 116 Explosions 707 | . 610 . . . . . . . . 48 . 49 . . . . . . . Melee 3217 | . . . . . 701 . . . 68 65 65 79 694 307 337 117 . 288 496 Ramming 112 | . . . . . . . . . . . . 67 . . . . . 45 . Kinetic 451 | . 47 . . . 187 54 . . . . . . . 73 . . . . 90 Thermal 585 | . 115 236 20 . . . . . . 48 . 49 . . . . . 47 70 Explosive 495 | . 495 . . . . . . . . . . . . . . . . . . Electromagnetic 1314 | . 193 46 . . . . 190 . 43 63 . 224 26 105 16 281 45 56 26 Impact . | . . . . . . . . . . . . . . . . . . . . Slashing 899 | . . . . . 701 . . . 68 65 65 . . . . . . . . Piercing 2318 | . . . . . . . . . . . . 79 694 307 337 117 . 288 496 Highest Corruption 9 | . . . . . . . . . 1 . 2 . . . 2 3 . . 9 Average Corruption 2 | . . . . . . . . . 1 . 1 . . . 1 2 . . 6 Corruption Purged 1 | . . . . . . . . . 1 . . . . . . . . . . Effects 7 | . . . . . . . . . . . 1 . . . . 6 . . . Message Errors 3 | . . . . . . . . . . . 1 . . . . 2 . . . Heat Flow Errors 3 | . . . . . . . . . . . . . . . . 3 . . . Data Loss (minor) 1 | . . . . . . . . . . . . . . . . 1 . . . Overload Shots . | . . . . . . . . . . . . . . . . . . . . Overflow Damage 283 | . 149 . . . 19 . . . . 8 . 37 . 14 11 34 4 7 . Projectiles 71 | . . . . . 19 . . . . . . . . 14 . 34 4 . . Explosions 157 | . 149 . . . . . . . . 8 . . . . . . . . . Melee 55 | . . . . . . . . . . . . 37 . . 11 . . 7 . Knockbacks 7 | . . . . . 1 1 . . . . . 1 . 1 . . . 1 2 Impact 2 | . . . . . . . . . . . . 1 . . . . . 1 . Kinetic 5 | . . . . . 1 1 . . . . . . . 1 . . . . 2 Secondary . | . . . . . . . . . . . . . . . . . . . . Self-Inflicted Damage 441 | . 159 . . . . . . . . 46 . 62 . . 152 . . 22 . Shots 6 | . 3 . . . . . . . . 1 . 1 . . 1 . . . . Rammed 3 | . . . . . . . . . . . . 1 . . . . . 2 . Targets Rammed 3 | . . . . . . . . . . . . 1 . . . . . 2 . Kicked . | . . . . . . . . . . . . . . . . . . . . Crushed . | . . . . . . . . . . . . . . . . . . . . Highest Temperature 450 | . 93 171 20 . 59 28 215 . 400 110 . 174 63 214 72 418 7 222 450 Average Temperature 81 | . 32 47 15 . 18 15 91 . 199 52 . 54 17 50 35 132 5 58 189 Received Heat Transfer 897 | . 36 18 . . . . 27 . . 6 . . 438 33 150 75 . 84 30 Effects 10 | . . . . . . . . . 2 . . . . 3 . 3 . . 2 Shutdowns 4 | . . . . . . . . . 2 . . . . . . . . . 2 Energy Bleed 1 | . . . . . . . . . . . . . . . . 1 . . . Interference 5 | . . . . . . . . . . . . . . 3 . 2 . . . Siege Activations . | . . . . . . . . . . . . . . . . . . . . Robots Corrupted . | . . . . . . . . . . . . . . . . . . . . Combat Hostiles . | . . . . . . . . . . . . . . . . . . . . Parts Fried 5 | . 2 . . . . . . . . . . 1 . . . 2 . . . Impact Corruptions 3 | . . . . . . . . . . . . 2 . . . . . 1 . Robots Melted . | . . . . . . . . . . . . . . . . . . . . Combat Hostiles . | . . . . . . . . . . . . . . . . . . . . Parts Melted . | . . . . . . . . . . . . . . . . . . . . Heat Transferred 966 | . 200 481 37 . . . . . . 50 . 50 . . . . . 74 74 Parts Sabotaged . | . . . . . . . . . . . . . . . . . . . . Parts Stolen 2 | . . . . . . . . . . 2 . . . . . . . . . Parts Stripped . | . . . . . . . . . . . . . . . . . . . . Power Chain Reactions 4 | . 2 . . . . . . . . 1 . 1 . . . . . . . Missiles Intercepted . | . . . . . . . . . . . . . . . . . . . . Alert | -11 -10 -9 -8 -7 -7 -7 -7 -7 -6 -6 -6 -5 -5 -5 -5 -5 -4 -4 -3 ------- Run | Scr Mat Mat Mat Fac Gar Fac Low Low Fac Low Low Fac Gar Fac Gar Fac Fac Ext Res Peak Influence 566 | . 161 232 52 35 214 138 . . 45 . . 112 263 301 422 241 106 566 164 Average Influence 104 | . 42 83 16 24 94 118 . . 42 . . 39 178 140 319 149 101 216 116 Maximum Alert Level 2 | . . 1 . . 1 . . . . . . . 1 1 2 1 . 2 . Low Security (%) 88 | 100 100 92 100 100 94 100 . . 100 . . 100 68 86 9 75 100 57 100 Level 1 9 | . . 7 . . 5 . . . . . . . 31 13 82 24 . 19 . Level 2 1 | . . . . . . . . . . . . . . . 7 . . 23 . Level 3 . | . . . . . . . . . . . . . . . . . . . . Level 4 . | . . . . . . . . . . . . . . . . . . . . Level 5 . | . . . . . . . . . . . . . . . . . . . . High Security . | . . . . . . . . . . . . . . . . . . . . Max Security . | . . . . . . . . . . . . . . . . . . . . Squads Dispatched 15 | . 2 3 . . . . . . 1 . . 1 . 2 . 1 1 3 1 Investigation 3 | . 1 1 . . . . . . . . . . . . . . . 1 . Extermination 3 | . . . . . . . . . 1 . . . . 1 . . . . 1 Reinforcement 9 | . 1 2 . . . . . . . . . 1 . 1 . 1 1 2 . Assault . | . . . . . . . . . . . . . . . . . . . . Garrison . | . . . . . . . . . . . . . . . . . . . . Intercept . | . . . . . . . . . . . . . . . . . . . . Construction Impeded 3 | . . . . . . . . . . . . . . 1 . . . 2 . Haulers Reinforced . | . . . . . . . . . . . . . . . . . . . . Stealth | -11 -10 -9 -8 -7 -7 -7 -7 -7 -6 -6 -6 -5 -5 -5 -5 -5 -4 -4 -3 --------- Run | Scr Mat Mat Mat Fac Gar Fac Low Low Fac Low Low Fac Gar Fac Gar Fac Fac Ext Res Distress Signals 9 | . . 3 1 . . . . . . . . . . 1 . 1 . 3 . Communications Jammed . | . . . . . . . . . . . . . . . . . . . . Distress Signals . | . . . . . . . . . . . . . . . . . . . . Times Spotted 165 | . 10 13 2 . 12 2 9 2 3 6 1 7 14 14 19 6 3 27 15 Peak Tracking Total 9 | . 3 7 5 . 9 1 1 3 2 3 1 2 7 2 7 2 2 8 8 Tactical Retreats 21 | . . 3 . . 1 . 1 . . 1 . . 3 2 2 2 . 4 2 Traps | -11 -10 -9 -8 -7 -7 -7 -7 -7 -6 -6 -6 -5 -5 -5 -5 -5 -4 -4 -3 ------- Run | Scr Mat Mat Mat Fac Gar Fac Low Low Fac Low Low Fac Gar Fac Gar Fac Fac Ext Res Traps Triggered 14 | . . 1 . . 3 . . . . . . . 5 . . 1 . 4 . Indirectly . | . . . . . . . . . . . . . . . . . . . . Trap Hack Attempts . | . . . . . . . . . . . . . . . . . . . . Triggered . | . . . . . . . . . . . . . . . . . . . . Disarmed . | . . . . . . . . . . . . . . . . . . . . Reprogrammed . | . . . . . . . . . . . . . . . . . . . . Reused . | . . . . . . . . . . . . . . . . . . . . Traps Extracted . | . . . . . . . . . . . . . . . . . . . . Installed . | . . . . . . . . . . . . . . . . . . . . Triggered 3 | . . . . . . . . . . 2 1 . . . . . . . . Machines | -11 -10 -9 -8 -7 -7 -7 -7 -7 -6 -6 -6 -5 -5 -5 -5 -5 -4 -4 -3 ---------- Run | Scr Mat Mat Mat Fac Gar Fac Low Low Fac Low Low Fac Gar Fac Gar Fac Fac Ext Res Machines Disabled 10 | . 2 . . . 1 . 1 . . . . . 1 1 3 . 1 . . Max in Single Turn 2 | . 1 . . . 1 . . . . . . . 1 1 2 . 1 . . Garrison Relay 3 | . . . . . 1 . . . . . . . 1 . 1 . . . . Phase Generator 1 | . . . . . . . . . . . . . . . 1 . . . . Machines Sabotaged . | . . . . . . . . . . . . . . . . . . . . Garrisons Compromised . | . . . . . . . . . . . . . . . . . . . . Overloaded Fab Kills . | . . . . . . . . . . . . . . . . . . . . Fab Network Shutdowns . | . . . . . . . . . . . . . . . . . . . . Hacking | -11 -10 -9 -8 -7 -7 -7 -7 -7 -6 -6 -6 -5 -5 -5 -5 -5 -4 -4 -3 --------- Run | Scr Mat Mat Mat Fac Gar Fac Low Low Fac Low Low Fac Gar Fac Gar Fac Fac Ext Res Machines Accessed 46 | . 4 4 3 3 . 3 1 . 2 1 1 8 . 5 . 2 1 5 3 Terminals 31 | . 4 4 3 1 . 2 . . 1 . . 4 . 3 . 1 1 4 3 Fabricators 4 | . . . . 1 . 1 . . . . . 1 . . . 1 . . . Repair Stations 1 | . . . . . . . . . . . . 1 . . . . . . . Recycling Units 3 | . . . . . . . . . . . . 1 . 1 . . . 1 . Scanalyzers 1 | . . . . . . . . . 1 . . . . . . . . . . Garrison Access 3 | . . . . 1 . . . . . . . 1 . 1 . . . . . Total Hacks 104 | . 9 13 7 6 . 5 1 . 6 1 1 21 . 11 . 7 1 5 10 Successful 54 | . 4 4 3 1 . 3 1 . 4 1 1 10 . 6 . 4 . 5 7 Failed 50 | . 5 9 4 5 . 2 . . 2 . . 11 . 5 . 3 1 . 3 Catastrophic 9 | . . 3 . . . 1 . . . . . 2 . 1 . 1 . . 1 Database Lockouts . | . . . . . . . . . . . . . . . . . . . . Manual 57 | . 4 11 5 1 . 5 . . 1 . . 11 . 7 . 6 1 . 5 Terminals 78 | . 9 13 7 1 . 4 . . 4 . . 11 . 8 . 6 1 4 10 Fabricators 6 | . . . . 3 . 1 . . . . . 1 . . . 1 . . . Repair Stations 3 | . . . . . . . . . . . . 3 . . . . . . . Recycling Units 7 | . . . . . . . . . . . . 4 . 2 . . . 1 . Scanalyzers 2 | . . . . . . . . . 2 . . . . . . . . . . Garrison Access 5 | . . . . 2 . . . . . . . 2 . 1 . . . . . Terminal Hacks 38 | . 4 4 3 . . 2 1 . 2 1 1 2 . 4 . 3 . 4 7 Record 3 | . . 1 . . . . . . . . . . . . . . . . 2 Open Door 7 | . . . . . . . 1 . . 1 1 . . . . . . 4 . Level Access Points 1 | . . . 1 . . . . . . . . . . . . . . . . Branch Access Points 7 | . 1 1 1 . . . . . 1 . . 1 . . . 1 . . 1 Terminal Index 8 | . . 1 1 . . 1 . . . . . 1 . 2 . 1 . . 1 Locate Traps 2 | . 1 . . . . . . . . . . . . . . . . . 1 Dispatch Records 1 | . . . . . . . . . . . . . . . . . . . 1 Security Status 1 | . . . . . . 1 . . . . . . . . . . . . . Patrol Status 1 | . . . . . . . . . . . . . . 1 . . . . . Zone Layout 7 | . 2 1 . . . . . . 1 . . . . 1 . 1 . . 1 Fabricator Hacks 3 | . . . . . . 1 . . . . . 1 . . . 1 . . . Network Status 2 | . . . . . . 1 . . . . . 1 . . . . . . . Build 1 | . . . . . . . . . . . . . . . . 1 . . . Repair Station Hacks 1 | . . . . . . . . . . . . 1 . . . . . . . Scan Component 1 | . . . . . . . . . . . . 1 . . . . . . . Recycling Unit Hacks 6 | . . . . . . . . . . . . 4 . 1 . . . 1 . Process 1 | . . . . . . . . . . . . 1 . . . . . . . Report Inventory 3 | . . . . . . . . . . . . 1 . 1 . . . 1 . Retrieve Matter 2 | . . . . . . . . . . . . 2 . . . . . . . Scanalyzer 2 | . . . . . . . . . 2 . . . . . . . . . . Insert Component 1 | . . . . . . . . . 1 . . . . . . . . . . Analyze 1 | . . . . . . . . . 1 . . . . . . . . . . Garrison Access Hacks 4 | . . . . 1 . . . . . . . 2 . 1 . . . . . Unlock Access 3 | . . . . 1 . . . . . . . 1 . 1 . . . . . Coupler Status 1 | . . . . . . . . . . . . 1 . . . . . . . Unauthorized Hacks . | . . . . . . . . . . . . . . . . . . . . Terminals . | . . . . . . . . . . . . . . . . . . . . Fabricators . | . . . . . . . . . . . . . . . . . . . . Repair Stations . | . . . . . . . . . . . . . . . . . . . . Recycling Units . | . . . . . . . . . . . . . . . . . . . . Scanalyzers . | . . . . . . . . . . . . . . . . . . . . Garrison Access . | . . . . . . . . . . . . . . . . . . . . Data Cores Recovered 2 | . . 1 . . . 1 . . . . . . . . . . . . . Used 1 | . . . . . . 1 . . . . . . . . . . . . . Hacking Detections 32 | . 4 4 2 3 . 2 . . 2 . . 6 . 3 . 2 . 1 3 Full Trace Events 2 | . 2 . . . . . . . . . . . . . . . . . . Feedback Events . | . . . . . . . . . . . . . . . . . . . . Feedback Blocked . | . . . . . . . . . . . . . . . . . . . . Robot Schematics Acquired . | . . . . . . . . . . . . . . . . . . . . Robots Built 1 | . . . . . . . . . . . . . . . . 1 . . . Matter 153 | . . . . . . . . . . . . . . . . 153 . . . Time 27 | . . . . . . . . . . . . . . . . 27 . . . Total Robot Build Rating 1 | . . . . . . . . . . . . . . . . 1 . . . Part Schematics Acquired 1 | . . . . . . . . . 1 . . . . . . . . . . Parts Built . | . . . . . . . . . . . . . . . . . . . . Matter . | . . . . . . . . . . . . . . . . . . . . Time . | . . . . . . . . . . . . . . . . . . . . Total Part Build Rating . | . . . . . . . . . . . . . . . . . . . . Parts Repaired . | . . . . . . . . . . . . . . . . . . . . Time . | . . . . . . . . . . . . . . . . . . . . Parts Recycled . | . . . . . . . . . . . . . . . . . . . . Recycled Matter 6 | . . . . . . . . . . . . 6 . . . . . . . Retrieved Matter 6 | . . . . . . . . . . . . 6 . . . . . . . Retrieved Components . | . . . . . . . . . . . . . . . . . . . . Parts Scanalyzed 1 | . . . . . . . . . 1 . . . . . . . . . . Part Schematics Acquired 1 | . . . . . . . . . 1 . . . . . . . . . . Parts Damaged . | . . . . . . . . . . . . . . . . . . . . Bothacking | -11 -10 -9 -8 -7 -7 -7 -7 -7 -6 -6 -6 -5 -5 -5 -5 -5 -4 -4 -3 ------------ Run | Scr Mat Mat Mat Fac Gar Fac Low Low Fac Low Low Fac Gar Fac Gar Fac Fac Ext Res Used RIF Installer 2 | . . . . . 1 . . . . . . . . . 1 . . . . Structural Interface 1 | . . . . . . . . . . . . . . . 1 . . . . Robots Hacked 15 | . . . . . . . 1 . . . . . . 3 4 2 2 2 1 Non-combat 5 | . . . . . . . . . . . . . . 2 . 1 . 1 1 Combat 10 | . . . . . . . 1 . . . . . . 1 4 1 2 1 . Robot Hacks Applied 19 | . . . . . . . 1 . . . . . . 5 4 3 2 2 2 parse_system 5 | . . . . . . . 1 . . . . . . 1 1 1 . 1 . generate_echo 1 | . . . . . . . . . . . . . . 1 . . . . . start_evac 1 | . . . . . . . . . . . . . . . . 1 . . . deconstruct_machine 2 | . . . . . . . . . . . . . . 2 . . . . . map_walls 1 | . . . . . . . . . . . . . . . . . . 1 . release_backups 1 | . . . . . . . . . . . . . . . . . . . 1 link_fov 1 | . . . . . . . . . . . . . . . . 1 . . . overload_power 1 | . . . . . . . . . . . . . . 1 . . . . . overwrite_iff 5 | . . . . . . . . . . . . . . . 3 . 2 . . formatsys_low 1 | . . . . . . . . . . . . . . . . . . . 1 Relay Couplers Released 5 | . . . . . 2 . . . . . . . 1 . 2 . . . . Machine Destruction 5 | . . . . . 2 . . . . . . . 1 . 2 . . . . Attached 4 | . . . . . 2 . . . . . . . . 1 1 . . . . Robots Rewired 20 | . . . . . . . 3 . . . . . . . . 1 . 16 . Allies Hacked . | . . . . . . . . . . . . . . . . . . . . Hacks Repelled . | . . . . . . . . . . . . . . . . . . . . Allies | -11 -10 -9 -8 -7 -7 -7 -7 -7 -6 -6 -6 -5 -5 -5 -5 -5 -4 -4 -3 -------- Run | Scr Mat Mat Mat Fac Gar Fac Low Low Fac Low Low Fac Gar Fac Gar Fac Fac Ext Res Total Allies 32 | . . . . . . . 3 . . . . . . 1 3 2 2 20 1 Largest Group 12 | . . . . . . . 3 . . . . . . 1 3 1 2 12 1 Highest-Rated Group 497 | . . . . . . . 85 . . . . . . 99 87 49 94 497 25 Highest-Rated Ally 99 | . . . . . . . 49 . . . . . . 99 29 49 47 49 25 Total Orders 7 | . . . . . . . . . . . . . . . . 2 . 2 3 ROAM 3 | . . . . . . . . . . . . . . . . 1 . 1 1 FOLLOW 1 | . . . . . . . . . . . . . . . . . . 1 . EXPLORE 3 | . . . . . . . . . . . . . . . . 1 . . 2 Ally Attacks 133 | . . . . . . . 30 . . . . . . 7 3 9 5 79 . Total Damage 4159 | . . . . . . . 658 . . . . . . 292 57 344 178 2630 . Kills 29 | . . . . . . . 8 . . . . . . 3 . 3 . 15 . Allies Corrupted 1 | . . . . . . . . . . . . . . 1 . . . . . Allies Melted . | . . . . . . . . . . . . . . . . . . . . Intel | -11 -10 -9 -8 -7 -7 -7 -7 -7 -6 -6 -6 -5 -5 -5 -5 -5 -4 -4 -3 ------- Run | Scr Mat Mat Mat Fac Gar Fac Low Low Fac Low Low Fac Gar Fac Gar Fac Fac Ext Res Robot Analysis Total . | . . . . . . . . . . . . . . . . . . . . Derelict Logs Recovered 5 | . . . . . . . 1 1 . 2 1 . . . . . . . . Drone Launches 11 | . . . . . . . . . . . . . . . . 9 . . 2 Drone Recoveries . | . . . . . . . . . . . . . . . . . . . . Exploration | -11 -10 -9 -8 -7 -7 -7 -7 -7 -6 -6 -6 -5 -5 -5 -5 -5 -4 -4 -3 ------------- Run | Scr Mat Mat Mat Fac Gar Fac Low Low Fac Low Low Fac Gar Fac Gar Fac Fac Ext Res Turns Passed 8783 | 36 636 1257 115 136 213 226 568 103 462 736 332 795 232 838 140 687 385 527 359 Spaces Moved 7782 | 34 242 345 173 243 280 294 867 188 292 922 405 958 173 860 166 389 143 539 269 Core 9 | 7 . 1 . . . . . . 1 . . . . . . . . . . Treads . | . . . . . . . . . . . . . . . . . . . . Legs . | . . . . . . . . . . . . . . . . . . . . Wheels 343 | 27 242 74 . . . . . . . . . . . . . . . . . Hover 7430 | . . 270 173 243 280 294 867 188 291 922 405 958 173 860 166 389 143 539 269 Flight . | . . . . . . . . . . . . . . . . . . . . Fastest Speed 45 | 50 90 52 52 52 52 52 52 52 52 56 60 45 45 45 48 48 48 48 48 Average Speed 56 | 82 91 61 52 52 52 52 52 52 94 58 60 48 45 64 48 48 48 48 53 Slowest Speed 150 | 100 93 100 52 52 52 56 56 52 150 60 60 120 45 116 48 48 48 48 106 Overloaded Moves . | . . . . . . . . . . . . . . . . . . . . Propulsion Burnouts . | . . . . . . . . . . . . . . . . . . . . Robots Hopped . | . . . . . . . . . . . . . . . . . . . . Cave-ins Triggered . | . . . . . . . . . . . . . . . . . . . . Exploration Rate (%) 30 | 3 43 31 18 7 39 7 89 20 9 87 35 22 44 22 46 22 5 57 8 Regions Visited 19 Branch Regions 5 Pre-discovered Areas . | . . . . . . . . . . . . . . . . . . . . Known Exits Taken 15 | . 1 1 1 1 . 1 1 1 1 1 1 1 . 1 . 1 1 1 . Unknown Exits Taken 1 | 1 . . . . . . . . . . . . . . . . . . . Scrap Searched 9 | . . . . . . . 4 . . 4 1 . . . . . . . . Spaces Dug . | . . . . . . . . . . . . . . . . . . . . Terrain Destroyed 114 | . 34 . . . . . . . . 4 . 3 . 1 72 . . . . Melee . | . . . . . . . . . . . . . . . . . . . . Projectile 1 | . . . . . . . . . . . . . . 1 . . . . . AOE 113 | . 34 . . . . . . . . 4 . 3 . . 72 . . . . Actions | -11 -10 -9 -8 -7 -7 -7 -7 -7 -6 -6 -6 -5 -5 -5 -5 -5 -4 -4 -3 --------- Run | Scr Mat Mat Mat Fac Gar Fac Low Low Fac Low Low Fac Gar Fac Gar Fac Fac Ext Res Total 11759 | 39 628 1366 195 252 319 365 959 192 455 1105 489 1253 284 1127 205 864 454 754 454 Wait 3265 | . 369 979 8 7 . 56 27 5 131 164 75 260 43 187 10 412 304 94 134 Move 7764 | 33 241 344 172 242 279 293 866 187 291 921 404 957 172 860 165 388 142 538 269 Hop . | . . . . . . . . . . . . . . . . . . . . Pick Up 26 | . . . . 1 1 1 . . 1 1 . . 2 10 1 8 . . . Fast Attach 81 | 6 3 13 8 . 2 6 3 . 9 . 1 9 . 6 . . 1 5 9 Attach 23 | . . . . 1 1 . . . . . . . 2 11 1 7 . . . Detach 1 | . . . . . 1 . . . . . . . . . . . . . . Swap 3 | . . . . . . . 3 . . . . . . . . . . . . Drop 82 | . . 12 6 1 1 7 4 . 10 1 1 5 . 14 1 6 1 4 8 Fire 194 | . 15 12 1 . 11 2 19 . 9 3 . 13 1 16 8 24 6 49 5 Melee 118 | . . . . . 11 . 9 . 4 3 3 2 28 7 12 4 . 20 15 Ram 3 | . . . . . . . . . . . . 1 . . . . . 2 . Kick . | . . . . . . . . . . . . . . . . . . . . Crush . | . . . . . . . . . . . . . . . . . . . . Escape Stasis 42 | . . . . . 11 . . . . . . . 25 . . . . 6 . Rewire 1 | . . . . . . . . . . . . . . . . . . . 1 Trap . | . . . . . . . . . . . . . . . . . . . . Miscellaneous 156 | . . 6 . . 1 . 28 . . 12 5 6 11 16 7 15 . 36 13 Route ------- -11/Scrapyard -10/Materials (discovered 2 exits: *Mat / Min) -9/Materials (discovered 4 exits: *Mat / Min / Sto x2) -8/Materials (discovered 3 exits: *Fac x3) -7/Factory -7/Garrison -7/Factory -7/Lower Caves -7/Lower Caves -6/Factory (discovered 2 exits: *Low x2) -6/Lower Caves -6/Lower Caves -5/Factory (discovered 3 exits: Upp x2 / Gar) -5/Garrison -5/Factory -5/Garrison -5/Factory (discovered 3 exits: *Fac / Upp x2) -4/Factory -4/Extension -3/Research (discovered 2 exits: Qua x2) History --------- Turn | Location | Event 5 | -11/Scrapyard | Upgraded with Power slot (x1) 5 | -11/Scrapyard | Upgraded with Propulsion slot (x2) 5 | -11/Scrapyard | Upgraded with Utility slot (x1) 5 | -11/Scrapyard | Upgraded with Weapon slot (x1) 10 | -11/Scrapyard | Discovered new exit (range 16) 37 | -11/Scrapyard | Entered Materials 106 | -10/Materials | Identified exit to Mines 306 | -10/Materials | Build established: Mutant 660 | -10/Materials | Discovered new exit (range 16) 673 | -10/Materials | Identified exit to Materials 673 | -10/Materials | Entered another Materials area 675 | -9/Materials | Reached level 2 679 | -9/Materials | Upgraded with Utility slot (x1) 773 | -9/Materials | Identified exit to Mines 773 | -9/Materials | Identified exit to Storage 1923 | -9/Materials | Discovered new exit (range 10) 1930 | -9/Materials | Identified exit to Materials 1930 | -9/Materials | Entered another Materials area 1932 | -8/Materials | Reached level 3 1934 | -8/Materials | Upgraded with Utility slot (x1) 2005 | -8/Materials | Reached level 4 2008 | -8/Materials | Upgraded with Utility slot (x1) 2018 | -8/Materials | Identified exit to Factory 2045 | -8/Materials | Entered Factory 2047 | -7/Factory | Reached level 5 2047 | -7/Factory | Upgraded with Power slot (x1) 2164 | -7/Factory | Identified exit to Garrison 2181 | -7/Factory | Entered Garrison 2184 | -7/Garrison | Installed Relay Interface Framework 2280 | -7/Garrison | Triggered checkpoint 2306 | -7/Garrison | Garrison Relay disabled 2306 | -7/Garrison | Reached level 6 2370 | -7/Garrison | Triggered checkpoint 2378 | -7/Garrison | Core integrity fell below 50% 2390 | -7/Garrison | Discovered new exit (range 8) 2394 | -7/Garrison | Identified exit to Factory 2394 | -7/Garrison | Entered Factory 2611 | -7/Factory | Discovered new exit (range 15) 2618 | -7/Factory | Identified exit to Lower Caves 2620 | -7/Factory | Entered Lower Caves 2629 | -7/Lower Caves | Learned Factory emergency access door positions 2632 | -7/Lower Caves | Encountered a Warlord checkpoint 2791 | -7/Lower Caves | Reached level 7 2847 | -7/Lower Caves | Build established: Hacker-Mutant 2861 | -7/Lower Caves | Upgraded with Utility slot (x1) 2861 | -7/Lower Caves | Found Prototype Device 2861 | -7/Lower Caves | Identified Heart of Steel 3085 | -7/Lower Caves | Discovered new exit (range 6) 3090 | -7/Lower Caves | Identified exit to Lower Caves 3188 | -7/Lower Caves | Entered another Lower Caves area 3196 | -7/Lower Caves | Learned location of 1 exit from Proximity Caves 3233 | -7/Lower Caves | Discovered new exit (range 13) 3239 | -7/Lower Caves | Identified exit to Factory 3291 | -7/Lower Caves | Entered Factory 3293 | -6/Factory | Reached level 8 3293 | -6/Factory | Upgraded with Weapon slot (x1) 3445 | -6/Factory | Identified exit to Lower Caves 3753 | -6/Factory | Entered Lower Caves 3755 | -6/Lower Caves | Reached level 9 3841 | -6/Lower Caves | Attracted the attention of an 0b10 checkpoint 3860 | -6/Lower Caves | Encountered a Warlord checkpoint 3994 | -6/Lower Caves | Lgt. Nuclear Core stolen by Master Thief 3994 | -6/Lower Caves | Gravmag System stolen by Master Thief 4155 | -6/Lower Caves | Learned Factory stockpile data 4436 | -6/Lower Caves | Discovered new exit (range 13) 4443 | -6/Lower Caves | Identified exit to Lower Caves 4446 | -6/Lower Caves | Learned location of 1 exit from Proximity Caves 4489 | -6/Lower Caves | Entered another Lower Caves area 4622 | -6/Lower Caves | Discovered new exit (range 5) 4625 | -6/Lower Caves | Identified exit to Factory 4697 | -6/Lower Caves | Learned 4 Factory zone layouts 4821 | -6/Lower Caves | Entered Factory 4823 | -5/Factory | Reached level 10 4898 | -5/Factory | Upgraded with Utility slot (x1) 5402 | -5/Factory | Identified exit to Upper Caves 5614 | -5/Factory | Identified exit to Garrison 5616 | -5/Factory | Entered Garrison 5616 | -5/Garrison | Reached level 11 5626 | -5/Garrison | Triggered checkpoint 5687 | -5/Garrison | Core integrity fell below 50% 5774 | -5/Garrison | Garrison Relay disabled 5802 | -5/Garrison | Spotted B-75 Beast 5812 | -5/Garrison | Triggered checkpoint 5817 | -5/Garrison | Triggered checkpoint 5844 | -5/Garrison | Discovered new exit (range 10) 5848 | -5/Garrison | Entered Factory 6292 | -5/Factory | Heart of Steel transformed into Warbot 6431 | -5/Factory | Reached level 12 6562 | -5/Factory | Core integrity fell below 20% 6631 | -5/Factory | Upgraded with Propulsion slot (x1) 6686 | -5/Factory | Identified exit to Garrison 6686 | -5/Factory | Entered Garrison 6689 | -5/Garrison | Expanded RIF knowledge: Structural Interface 6699 | -5/Garrison | Phase Generator disabled 6699 | -5/Garrison | Reached level 13 6724 | -5/Garrison | Garrison Relay disabled 6734 | -5/Garrison | Triggered checkpoint 6796 | -5/Garrison | Triggered checkpoint 6797 | -5/Garrison | Triggered checkpoint 6818 | -5/Garrison | Discovered new exit (range 13) 6824 | -5/Garrison | Identified exit to Factory 6826 | -5/Garrison | Entered Factory 7027 | -5/Factory | Build established: Generator-Mutant 7395 | -5/Factory | Reached level 14 7422 | -5/Factory | Fabricated A-02 Transporter (x1) 7476 | -5/Factory | Discovered new exit (range 13) 7512 | -5/Factory | Identified exit to Factory 7513 | -5/Factory | Entered another Factory area 7514 | -4/Factory | Core integrity fell below 50% 7514 | -4/Factory | Upgraded with Weapon slot (x1) 7515 | -4/Factory | Reached level 15 7619 | -4/Factory | Build established: Hacker-Mutant 7892 | -4/Factory | Discovered new exit (range 12) 7897 | -4/Factory | Identified exit to Extension 7898 | -4/Factory | Entered Extension 7915 | -4/Extension | Rescued a captive Derelict 7916 | -4/Extension | Rescued a captive Derelict 8017 | -4/Extension | Core integrity fell below 20% 8078 | -4/Extension | Reached level 16 8092 | -4/Extension | Rescued a captive Derelict 8127 | -4/Extension | Upgraded with Power slot (x1) 8127 | -4/Extension | Upgraded with Weapon slot (x1) 8136 | -4/Extension | Rescued a captive Derelict 8173 | -4/Extension | Reached level 17 8225 | -4/Extension | Reached level 18 8262 | -4/Extension | Spotted B-86 Titan 8419 | -4/Extension | Spotted B-86 Titan 8424 | -4/Extension | Discovered new exit (range 3) 8424 | -4/Extension | Identified exit to Research 8425 | -4/Extension | Entered Research 8426 | -3/Research | Core integrity fell below 50% 8427 | -3/Research | Reached level 19 8642 | -3/Research | Identified exit to Quarantine 8768 | -3/Research | Core integrity fell below 20% 8784 | -3/Research | Destroyed by S-43 Plague with Heavy Machine Gun Last Messages --------------- 12x Surveillance 14x Patrol 10x Transport 08642_ Terminal disabled. 08654_ S-43 Plague destroyed. 08675_ ALERT: Rogue bot located, Programmers report to Research Zone 6L. 08707_ Used Protomatter to restore core integrity (+51, depleted) 08749_ RIF reveals location of hidden door. 08751_ P-80 Master resets P-80 Master, system corruption cleaned. 08752_ P-80 Master knocked back. 08754_ P-80 Master resets P-80 Master, system corruption cleaned. 08755_ P-80 Master knocked back. 08758_ Power failure, Lgt. Nuclear Core shutdown. 08760_ Power failure, Mic. Fission Core shutdown. 08768_ P-80 Master resets P-80 Master, system corruption cleaned. 08771_ Dropped Adv. Shield Generator. 08772_ Terminal disabled. 08780_ Acquired 6 matter. 08783_ Sneak attack on K-01 Serf. 08783_ K-01 Serf destroyed. Map ----- +----------------------------------------------------+ | ?????????????????????????????????????????????????? | | ?????????????????????????????????????????????????? | | ?????????????????????????????????????????????????? | | ?????????????????????????????????????????????????? | | ??????????????????????????????????????????###????? | | ??????????????????????????????????????##### ###### | | ??????????????????????????????????????# # | | ??????????????????????????????????????# !* ##### | | ??????????????????????????????????????# !! #???? | | ??????????????????????????????????????# * #???? | | ??????????????????????????????????????# #???? | | ???????????????????????????##########?# #???? | | ??????????????????????????? #?####"###???? | | ???????????????????????#? ] #??# #???? | | ???????????????????????# """ #### ##### | | ???????????????????????# """ + | | ???????????????????????# """ #### ##### | | ???????????????????????# "" #??# #???? | | ???????????????????????# """ #??### ####### | | ???????????????????????# """ T #????# | | ???????????????????????# """ "" ###### | | ???????????????????????+ """ "" /! | | ???????????????????????# s p ######### | | ???????????????????????# s #???????# | | ????????????????????##########s###########??##### | | ????????????????????+ %@ s # #??????# | | ??????#?????????????######## # #??????# | | ??????# ???????????????????# # """ #??#####+ | | ??????# ??????????????????# + """ #??# | | ??????# ?????????????????# # """ #??# | | ??????# ????????????????# # """ #??# | | ??????# =################# #???????????# | | ???" # !=% #???????????# | | ???" + * #???????????# | | ??????# #????###+######+## | | ??????# """ #????# # | | ??????# """" ###############????# # | | ??????# "F"" #################### + | | ??????# "" # ! *! ## # | | ??????# """ # ! ## # | | ??????# "" # """ """= """ ######+#### | | ??????# + """ """ """ #??# ## | | ??????# # """ """ """ #### ## | | #####?# # + | | # # = #### ##+## | | # ###################??# #???? | | + = #?????????????????### ###???? | | # #???????????????????# #?????? | | = *# #########???????????# #?????? | | ####### ?????? ?????? | +----------------------------------------------------+ Best States ------------- Heat Dissipation 79 Energy Generation 64 Energy Capacity 670 Matter Stores 300 Matter Capacity 300 Sight Range 22 Robot Scan Range 30 Terrain Scan Density 10 ECM Strength 3 Jamming Range 8 Additional Mass Support 9 Evasion (%) 56 Targeting Accuracy 6 Offensive Hacking 15 Defensive Hacking 15 Item Schematics ----------------- Imp. Datajack | -6/Factory | Scanalyzed Robot Schematics ------------------ None Fabricated ------------ A-02 Transporter | x1 | -5/Factory | Preloaded Alien Tech Used ----------------- None Achievements -------------- Error 47 Infiltrator Challenges ------------ None RPGLIKE | -11 -10 -9 -8 -7 -7 -7 -7 -7 -6 -6 -6 -5 -5 -5 -5 -5 -4 -4 -3 --------- Run | Scr Mat Mat Mat Fac Gar Fac Low Low Fac Low Low Fac Gar Fac Gar Fac Fac Ext Res Levels Raised 18 | . . 1 2 1 1 . 1 . 1 1 . 1 1 1 1 1 1 3 1 XP Earned 30911 | 3000 695 2285 1585 1560 1700 105 1750 500 1650 600 650 1880 1400 1104 1150 929 1575 4458 2335 XP Spent 23675 | 2800 175 1520 2955 1530 1290 . 1700 . 1175 . . 3300 1395 1515 . . 1820 2500 . Upgrades 58 | 5 3 4 6 6 5 . 1 . 5 . . 3 9 4 . . 5 2 . Power Slot 3 | 1 . . . 1 . . . . . . . . . . . . . 1 . Propulsion Slot 3 | 2 . . . . . . . . . . . . . 1 . . . . . Utility Slot 6 | 1 . 1 2 . . . 1 . . . . 1 . . . . . . . Weapon Slot 4 | 1 . . . . . . . . 1 . . . . . . . 1 1 . Core Integrity 18 | . 1 . 2 1 2 . . . 3 . . . 9 . . . . . . Heat Dissipation 9 | . . 2 . . . . . . 1 . . . . 2 . . 4 . . Energy Generation 1 | . . . 1 . . . . . . . . . . . . . . . . Mass Support 3 | . 1 1 . . . . . . . . . 1 . . . . . . . Inventory Capacity 1 | . . . . 1 . . . . . . . . . . . . . . . Sensor Range 6 | . 1 . 1 2 1 . . . . . . . . 1 . . . . . Hack Attack % 3 | . . . . 1 2 . . . . . . . . . . . . . . Hack Defense % 1 | . . . . . . . . . . . . 1 . . . . . . . Protomatter Created 557 | . . 44 . . 3 . . . . . 37 48 81 83 50 44 . 71 96 Integrity Restored 3519 | . . 132 . . 9 . 609 . . 264 111 144 243 366 150 342 . 861 288 Core 3519 | . . 132 . . 9 . 609 . . 264 111 144 243 366 150 342 . 861 288 Protomatter Decayed 501 | . . . . . . . 142 . . . 12 . . 32 . . . 315 . Game ------ Seed WarpOmegaStabilizer Manual? 0 Play Time 02:41:24 Cumulative 39.1 hours Start 2020.01.18 @ 17:38:20 End 2020.01.18 @ 20:52:15 Sessions 1 Manual Loads 0 Difficulty Rogue Special Mode Winter2019/RPGLIKE Game No. 59 Rogue 59 Adventurer 0 Explorer 0 Win Type - Total 1 Types 1/0/0/0/0/0/0 Lore% 29 Gallery% 33 Achievement% 28 Wizard Run 0 Options --------- ASCII 0 Keyboard 0 Movement Mouse Keybinds 0 Fullscreen 1 Font 18/SmallcapsGlow Map View 76x50 Tactical HUD 1 Map Filters NONE Filters NONE Steam 1 RUN: 2910803d-2b0a-4d38-bc89-9776068541b2